Cogmind - Beta 14 @@@ ROGUE MODE // 2024.09.09 @ 00:25:20 Player: Dull Result: Destroyed by Y-54 Guardian with Flak Gun Performance ------------- Evolutions (3) 1500 Regions Visited (7) 1400 Robots Destroyed (50) 250 Value Destroyed (1392) 1392 Prototype IDs (2) 40 Alien Tech Used (0) 0 Bonus (220) 220 TOTAL SCORE: 4802 Bonus ------- Follower Combat Kills 220 Cogmind --------- Core Integrity 0/700 Matter 294/300 Energy 150/150 System Corruption 0% Temperature Cool (18) Movement Treading (160) Location -7/Factory Parts ------- > --- POWER (1) -------- Micro Nuclear Core > --- PROPULSION (4) --- Light Treads Medium Treads Heavy Treads > --- UTILITY (6) ------ Improved Heat Sink Improved Heat Sink Large Storage Unit Heavy Armor Plating Reflective Plating > --- WEAPON (2) ------- Beamcaster Heavy Battle Rifle > --- INVENTORY (15) --- Improved Ion Engine Hybrid Antimatter Reactor Improved Heat Sink High-capacity Battery (250) Advanced Weight Redist. System Hardlight Generator Shield Generator Beamcaster Advanced Concussive RPG (1) Force Lance Peak State ------------ > --- POWER ------------ Light Nuclear Core > --- PROPULSION ------- Heavy Treads Heavy Treads > --- UTILITY ---------- Large Storage Unit Sensor Array Damper Plating > --- WEAPON ----------- Beamcaster Heavy Battle Rifle > --- INVENTORY -------- Improved Ion Engine Hybrid Antimatter Reactor Improved Heat Sink Improved Heat Sink High-capacity Battery Advanced Weight Redist. System Light Armor Plating Reflective Plating Hardlight Generator Shield Generator Beamcaster Beamcaster Heavy Battle Rifle Advanced Concussive RPG Force Lance [Rating: 67] Favorites ----------- Power Light Nuclear Core Engine Improved Ion Engine Power Core Light Nuclear Core Propulsion Aluminum Leg Treads Heavy Treads Leg Aluminum Leg Wheel Armored Huge Wheel Utility Large Storage Unit Device Improved Heat Sink Storage Large Storage Unit Protection Damper Plating Weapon Beam Cannon Energy Gun Medium Laser Energy Cannon Beam Cannon Ballistic Gun Heavy Battle Rifle Ballistic Cannon Gauss Cannon Launcher Heavy Missile Launcher Piercing Weapon Kinetic Spear Build | -11 -10 -10 -9 -8 -7 -7 -7 ------- Run | Yrd Mat Min Mat Mat Fac Was Fac Slots Evolved 6 | . . . 2 2 2 . . Power . | . . . . . . . . Propulsion 2 | . . . . 2 . . . Utility 4 | . . . 2 . 2 . . Weapon . | . . . . . . . . Parts Attached 87 | 8 13 4 19 10 11 10 12 Power 8 | 1 3 . 1 1 . 1 1 Engine 3 | 1 1 . 1 . . . . Core 5 | . 2 . . 1 . 1 1 Reactor . | . . . . . . . . Propulsion 27 | 4 5 2 4 3 3 2 4 Treads 10 | 2 2 . . . . 2 4 Leg 14 | . 3 2 4 3 2 . . Wheel 3 | 2 . . . . 1 . . Hover . | . . . . . . . . Flight . | . . . . . . . . Utility 24 | 1 3 . 7 4 3 1 5 Device 10 | . 1 . 4 1 2 . 2 Storage 6 | 1 1 . 2 1 . . 1 Processor . | . . . . . . . . Hackware . | . . . . . . . . Protection 8 | . 1 . 1 2 1 1 2 Artifact . | . . . . . . . . Weapon 28 | 2 2 2 7 2 5 6 2 Energy Gun 10 | 1 1 . 3 1 1 2 1 Energy Cannon 7 | . 1 2 2 . 2 . . Ballistic Gun 5 | 1 . . 1 1 . 1 1 Ballistic Cannon 3 | . . . . . 2 1 . Launcher 2 | . . . 1 . . 1 . Special Weapon . | . . . . . . . . Impact Weapon . | . . . . . . . . Slashing Weapon . | . . . . . . . . Piercing Weapon 1 | . . . . . . 1 . Special Melee Weapon . | . . . . . . . . Unidentified Prototypes 2 | . . . 1 . . 1 . Parts Lost 18 | . 4 . 4 5 3 . 2 Power 3 | . 2 . 1 . . . . Propulsion 4 | . . . 1 2 1 . . Utility 5 | . 1 . . 2 1 . 1 Weapon 6 | . 1 . 2 1 1 . 1 Highest Loss Streak 4 | . 3 . 4 1 3 . 1 To Critical Strikes . | . . . . . . . . Average Slot Usage (%) 87 | . 96 100 99 97 92 68 60 Engine 1 | . 5 . 2 3 . . . Core 8 | . 7 14 8 5 7 7 7 Treads 4 | . 7 . . . . . 14 Leg 17 | . 16 28 22 33 17 13 . Wheel 1 | . 3 . . . 4 6 . Device 10 | . 2 . 17 9 23 8 7 Storage 16 | . 18 28 22 18 15 7 6 Protection 5 | . 4 . 4 8 6 6 7 Energy Gun 8 | . 13 14 8 3 5 4 6 Energy Cannon 6 | . 5 14 10 5 1 2 . Ballistic Gun 5 | . 8 . 2 9 5 4 6 Peak Build Rating 67 | 6 10 10 17 21 37 67 67 Average Rating 27 | 4 8 10 15 18 31 50 60 On Entrance 20 | . 6 10 10 15 19 37 67 Naked Turns . | . . . . . . . . Heaviest Build 85 | 13 18 18 40 41 49 85 81 Greatest Support 140 | 40 40 20 20 40 40 140 140 Greatest Overweight (x) 26 | . . 1 3 1 2 3 26 Average Overweight (x) . | . . . . . 1 2 . Largest Inventory Capacity 15 | 8 8 8 15 15 15 15 15 Average Capacity 12 | 6 8 8 13 15 15 15 14 Most Carried 15 | 6 8 8 15 15 15 15 15 Average Carried 11 | 3 7 7 11 14 13 14 13 Final Capacity 15 | 8 8 8 15 15 15 15 15 Final Carried 15 | 6 8 8 15 15 15 15 10 Class Distribution -------------------- 71% | Mutant 28% | Scavenger-Mutant Dominant Class ---------------- Mutant | -10/Materials Mutant | -10/Mines Mutant | -9/Materials Scavenger-Mutant | -8/Materials Scavenger-Mutant | -7/Factory Mutant | -7/Waste Mutant | -7/Factory Resources | -11 -10 -10 -9 -8 -7 -7 -7 ----------- Run | Yrd Mat Min Mat Mat Fac Was Fac Matter Collected 1499 | 197 320 79 230 197 65 160 251 Remotely . | . . . . . . . . Salvage Created 2081 | . 388 279 420 430 75 . 489 Parts 102 | . 17 9 28 27 4 . 17 Haulers Intercepted . | . . . . . . . . Recyclers Shooed 3 | . . 1 1 . . . 1 Parts Field Recycled . | . . . . . . . . Retrieved Matter . | . . . . . . . . Parts Self-Destructed . | . . . . . . . . Prevented . | . . . . . . . . Kills | -11 -10 -10 -9 -8 -7 -7 -7 ------- Run | Yrd Mat Min Mat Mat Fac Was Fac Combat Hostiles Destroyed 40 | . 9 2 10 11 1 . 7 Guns 28 | . 9 1 4 7 1 . 6 Cannons 11 | . . 1 6 4 . . . Classes Destroyed 8 | . 4 1 1 1 . . 1 Worker 2 | . 2 . . . . . . Tunneler 2 | . 1 1 . . . . . Recycler 6 | . . 2 2 . . . 2 Swarmer 14 | . 3 . 7 4 . . . Grunt 16 | . 6 2 . 4 . . 4 Brawler 1 | . . . . 1 . . . Sentry 8 | . . . 3 2 1 . 2 Programmer 1 | . . . . . . . 1 Best Kill Streak 4 | . 4 3 3 4 1 . 2 Combat Bots Only 4 | . 4 2 3 4 1 . 2 Max Kills in Single Turn 1 | . 1 1 1 1 1 . 1 Gunslinging . | . . . . . . . . Exploded . | . . . . . . . . Melee . | . . . . . . . . Uniques/NPCs Destroyed . | . . . . . . . . Combat | -11 -10 -10 -9 -8 -7 -7 -7 -------- Run | Yrd Mat Min Mat Mat Fac Was Fac Hostile Shots Fired 540 | . 67 13 101 79 72 . 208 Missed 147 | . 16 1 25 20 28 . 57 Damage Taken 4692 | . 673 154 782 771 339 . 1973 Core 970 | . 39 37 129 60 33 . 672 Absorbed by Shields 97 | . . . 97 . . . . Ignored by Resistances 117 | . . . . . . . 117 Regen/Repaired (Parts) 904 | . 52 . . . . . 852 Core Remaining (%) 81 | 100 . 69 67 89 . . . Volleys Fired 197 | . 45 13 38 35 10 . 56 Largest 2 | . 2 2 2 2 2 . 2 Hottest 110 | . 110 110 110 83 73 . 108 Shots Fired 369 | . 88 26 75 68 18 . 94 Gun 280 | . 80 13 37 38 18 . 94 Cannon 89 | . 8 13 38 30 . . . Launcher . | . . . . . . . . Special . | . . . . . . . . Kinetic 128 | . 37 . 10 33 10 . 38 Thermal 228 | . 51 26 65 30 . . 56 Explosive . | . . . . . . . . Electromagnetic 13 | . . . . 5 8 . . Robot Hit Streak 25 | . 25 7 10 10 4 . 14 Robot Miss Streak 4 | . 4 2 4 4 2 . 2 Penetration Max . | . . . . . . . . Secondary Targets 2 | . 2 . . . . . . Max Gunslinging Chain 1 | . 1 . . . . . . Shots Hit Robots 252 | . 59 17 51 44 11 . 70 Core Hits 88 | . 24 7 17 19 3 . 18 Critical Kills . | . . . . . . . . Critical Parts Destroyed 1 | . . . . . . . 1 Critical Strikes 9 | . 2 1 1 . . . 5 Burn 8 | . 2 1 1 . . . 4 Destroy 1 | . . . . . . . 1 Melee Attacks . | . . . . . . . . Impact . | . . . . . . . . Slashing . | . . . . . . . . Piercing . | . . . . . . . . Sneak Attacks . | . . . . . . . . Combat Hostiles . | . . . . . . . . Follow-up Attacks . | . . . . . . . . Damage Inflicted 4108 | . 648 250 796 729 163 . 1522 Guns 3141 | . 578 111 359 408 163 . 1522 Cannons 967 | . 70 139 437 321 . . . Explosions . | . . . . . . . . Melee . | . . . . . . . . Ramming . | . . . . . . . . Kinetic 1482 | . 205 . 120 364 77 . 716 Thermal 2496 | . 443 250 676 321 . . 806 Explosive . | . . . . . . . . Electromagnetic 130 | . . . . 44 86 . . Impact . | . . . . . . . . Slashing . | . . . . . . . . Piercing . | . . . . . . . . Highest Corruption 4 | . 4 4 2 . . . . Average Corruption 2 | . 3 4 1 . . . . Corruption Purged . | . . . . . . . . Corruption Blocked . | . . . . . . . . Effects 25 | . 2 14 9 . . . . Message Errors 3 | . 1 2 . . . . . Matter Fused 8 | . 1 3 4 . . . . Heat Flow Errors 3 | . . 3 . . . . . Energy Discharges 4 | . . 2 2 . . . . Data Loss (minor) 3 | . . 3 . . . . . Data Loss (major) 3 | . . 1 2 . . . . Alerts 1 | . . . 1 . . . . Overload Shots . | . . . . . . . . Overflow Damage 13 | . . . 13 . . . . Projectiles 13 | . . . 13 . . . . Explosions . | . . . . . . . . Melee . | . . . . . . . . Knockbacks . | . . . . . . . . Impact . | . . . . . . . . Kinetic . | . . . . . . . . Secondary . | . . . . . . . . Self-Inflicted Damage . | . . . . . . . . Shots . | . . . . . . . . Rammed . | . . . . . . . . Targets Rammed . | . . . . . . . . Kicked . | . . . . . . . . Crushed . | . . . . . . . . Highest Temperature 684 | . 297 419 364 . . . 684 Average Temperature 142 | . 123 166 34 . . . 189 Received Heat Transfer 1614 | . 270 105 225 270 102 . 642 Effects 42 | . 3 2 . . . . 37 Shutdowns 5 | . . 1 . . . . 4 Energy Bleed 7 | . 3 . . . . . 4 Interference 3 | . . . . . . . 3 Matter Decay 1 | . . . . . . . 1 Short Circuit 4 | . . 1 . . . . 3 Damage (minor) 3 | . . . . . . . 3 Damage (major) 14 | . . . . . . . 14 Damage (core) 5 | . . . . . . . 5 Siege Activations . | . . . . . . . . Robots Corrupted . | . . . . . . . . Combat Hostiles . | . . . . . . . . Parts Fried 1 | . . . . . 1 . . Impact Corruptions . | . . . . . . . . Robots Melted 1 | . . . . . . . 1 Combat Hostiles 1 | . . . . . . . 1 Parts Melted 17 | . 6 1 2 2 . . 6 Heat Transferred 6179 | . 1406 703 1702 666 . . 1702 Parts Sabotaged . | . . . . . . . . Parts Stolen . | . . . . . . . . Parts Stripped . | . . . . . . . . Power Chain Reactions . | . . . . . . . . Alert | -11 -10 -10 -9 -8 -7 -7 -7 ------- Run | Yrd Mat Min Mat Mat Fac Was Fac Peak Influence 255 | . 255 95 215 239 58 . 157 Initial 43 | . . 30 . 43 42 . . Average 63 | . 84 52 98 95 51 . 23 Maximum Alert Level 1 | . 1 . 1 1 . . . Low Security (%) 96 | 100 93 100 92 97 100 100 100 Level 1 3 | . 6 . 7 2 . . . Level 2 . | . . . . . . . . Level 3 . | . . . . . . . . Level 4 . | . . . . . . . . Level 5 . | . . . . . . . . High Security . | . . . . . . . . Max Security . | . . . . . . . . Squads Dispatched 11 | . . . 2 4 . . 5 Investigation 3 | . . . 1 1 . . 1 Extermination 1 | . . . . . . . 1 Reinforcement 4 | . . . 1 3 . . . Assault . | . . . . . . . . Garrison 3 | . . . . . . . 3 Intercept . | . . . . . . . . Searches Triggered . | . . . . . . . . Construction Impeded . | . . . . . . . . Haulers Reinforced . | . . . . . . . . Active Scanning Responses . | . . . . . . . . Cargo Convoy Interrupts . | . . . . . . . . Stealth | -11 -10 -10 -9 -8 -7 -7 -7 --------- Run | Yrd Mat Min Mat Mat Fac Was Fac Distress Signals 6 | . 2 . 2 1 1 . . Communications Jammed . | . . . . . . . . Distress Signals . | . . . . . . . . Times Spotted 73 | . 16 2 28 14 2 . 11 Peak Tracking Total 6 | . 5 2 6 4 2 . 2 Tactical Retreats 2 | . 1 . 1 . . . . Traps | -11 -10 -10 -9 -8 -7 -7 -7 ------- Run | Yrd Mat Min Mat Mat Fac Was Fac Traps Triggered 5 | . 3 . 1 . 1 . . Indirectly . | . . . . . . . . Trap Hack Attempts . | . . . . . . . . Triggered . | . . . . . . . . Disarmed . | . . . . . . . . Reprogrammed . | . . . . . . . . Reused . | . . . . . . . . Traps Extracted . | . . . . . . . . Installed . | . . . . . . . . Triggered . | . . . . . . . . Machines | -11 -10 -10 -9 -8 -7 -7 -7 ---------- Run | Yrd Mat Min Mat Mat Fac Was Fac Machines Disabled 3 | . 1 . 2 . . . . Max in Single Turn 1 | . 1 . 1 . . . . Machines Repaired . | . . . . . . . . Machines Dismantled . | . . . . . . . . Machines Sabotaged . | . . . . . . . . Overloaded Fab Kills . | . . . . . . . . Hacking | -11 -10 -10 -9 -8 -7 -7 -7 --------- Run | Yrd Mat Min Mat Mat Fac Was Fac Machines Accessed 8 | . 2 1 4 . . . 1 Terminals 3 | . 1 . 2 . . . . Fabricators . | . . . . . . . . Repair Stations 4 | . 1 . 2 . . . 1 Recycling Units . | . . . . . . . . Scanalyzers . | . . . . . . . . Garrison Access . | . . . . . . . . Total Hacks 38 | . 8 1 18 . . . 11 Successful 19 | . 4 1 5 . . . 9 Failed 19 | . 4 . 13 . . . 2 Catastrophic 2 | . . . 2 . . . . Database Lockouts . | . . . . . . . . Manual 6 | . . . 6 . . . . Terminals 10 | . 2 . 8 . . . . Fabricators . | . . . . . . . . Repair Stations 27 | . 6 . 10 . . . 11 Recycling Units . | . . . . . . . . Scanalyzers . | . . . . . . . . Garrison Access . | . . . . . . . . Terminal Hacks 3 | . . 1 2 . . . . Open Door 1 | . . 1 . . . . . Unreport Threat 1 | . . . 1 . . . . Zone Layout 1 | . . . 1 . . . . Fabricator Hacks . | . . . . . . . . Repair Station Hacks 16 | . 4 . 3 . . . 9 Scan Component 10 | . 2 . 3 . . . 5 Repair 6 | . 2 . . . . . 4 Recycling Unit Hacks . | . . . . . . . . Scanalyzer . | . . . . . . . . Garrison Access Hacks . | . . . . . . . . Unauthorized Hacks . | . . . . . . . . Terminals . | . . . . . . . . Fabricators . | . . . . . . . . Repair Stations . | . . . . . . . . Recycling Units . | . . . . . . . . Scanalyzers . | . . . . . . . . Garrison Access . | . . . . . . . . Data Cores Recovered . | . . . . . . . . Used . | . . . . . . . . Hacking Detections 7 | . 2 . 4 . . . 1 Full Trace Events 3 | . . . 2 . . . 1 Feedback Events 1 | . . . 1 . . . . Corruption 1 | . . . 1 . . . . Feedback Blocked . | . . . . . . . . Robot Schematics Acquired . | . . . . . . . . Robots Built . | . . . . . . . . Authchips . | . . . . . . . . Time . | . . . . . . . . Total Robot Build Rating . | . . . . . . . . Part Schematics Acquired . | . . . . . . . . Parts Built . | . . . . . . . . Authchips . | . . . . . . . . Time . | . . . . . . . . Total Part Build Rating . | . . . . . . . . Parts Repaired 6 | . 2 . . . . . 4 Time 292 | . 64 . . . . . 228 Parts Recycled . | . . . . . . . . Recycled Matter . | . . . . . . . . Retrieved Matter . | . . . . . . . . Retrieved Components . | . . . . . . . . Parts Scanalyzed . | . . . . . . . . Part Schematics Acquired . | . . . . . . . . Parts Damaged . | . . . . . . . . Bothacking | -11 -10 -10 -9 -8 -7 -7 -7 ------------ Run | Yrd Mat Min Mat Mat Fac Was Fac Used RIF Installer . | . . . . . . . . Robots Hacked . | . . . . . . . . Non-combat . | . . . . . . . . Combat . | . . . . . . . . Robot Hacks Applied . | . . . . . . . . Relay Couplers Released . | . . . . . . . . Fabnet Peak Effective % . | . . . . . . . . Robots Rewired . | . . . . . . . . Allies Hacked . | . . . . . . . . Hacks Repelled . | . . . . . . . . Allies | -11 -10 -10 -9 -8 -7 -7 -7 -------- Run | Yrd Mat Min Mat Mat Fac Was Fac Total Allies 3 | . . 3 . . . . . Largest Group 3 | . . 3 3 . . . . Highest-Rated Group 40 | . . 40 40 . . . . Highest-Rated Ally 16 | . . 16 16 . . . . Total Orders . | . . . . . . . . Ally Attacks 54 | . . . 54 . . . . Total Damage 537 | . . . 537 . . . . Kills 12 | . . . 12 . . . . Allies Corrupted . | . . . . . . . . Allies Melted . | . . . . . . . . Intel | -11 -10 -10 -9 -8 -7 -7 -7 ------- Run | Yrd Mat Min Mat Mat Fac Was Fac Robot Analysis Total . | . . . . . . . . Derelict Logs Recovered 2 | . . 2 . . . . . Drone Launches . | . . . . . . . . Drone Recoveries . | . . . . . . . . Exploration | -11 -10 -10 -9 -8 -7 -7 -7 ------------- Run | Yrd Mat Min Mat Mat Fac Was Fac Turns Passed 5736 | 66 720 591 1616 636 425 424 1258 Spaces Moved 2720 | 41 391 279 750 314 280 287 378 Core 11 | 4 . . . . . . 7 Treads 477 | 18 73 . . . . 15 371 Legs 1598 | . 214 279 750 314 41 . . Wheels 634 | 19 104 . . . 239 272 . Hover . | . . . . . . . . Flight . | . . . . . . . . Fastest Speed 50 | 50 90 120 120 120 115 115 160 Average Speed 155 | 116 119 123 188 131 128 136 212 Slowest Speed 1350 | 160 160 190 330 190 260 240 1350 Overloaded Moves . | . . . . . . . . Propulsion Burnouts . | . . . . . . . . Robots Hopped . | . . . . . . . . Cave-ins Triggered . | . . . . . . . . Exploration Rate (%) 44 | 3 76 59 69 37 9 93 10 Regions Visited 7 Branch Regions 1 Pre-discovered Areas 1 | . . 1 . . . . . Known Exits Taken 1 | . . . 1 . . . . Unknown Exits Taken 4 | 1 1 1 . 1 . . . Scrap Searched 1 | . . 1 . . . . . Spaces Dug . | . . . . . . . . Terrain Destroyed . | . . . . . . . . Melee . | . . . . . . . . Projectile . | . . . . . . . . AOE . | . . . . . . . . Terrain Rammed . | . . . . . . . . Walls Destroyed . | . . . . . . . . Machines Disabled . | . . . . . . . . Actions | -11 -10 -10 -9 -8 -7 -7 -7 --------- Run | Yrd Mat Min Mat Mat Fac Was Fac Total 3879 | 54 566 500 885 476 330 325 743 Wait 716 | . 90 200 41 101 17 . 267 Move 2714 | 40 390 278 749 313 280 286 378 Hop . | . . . . . . . . Pick Up 87 | 6 17 2 21 9 5 8 19 Fast Attach 31 | 6 3 . 4 1 5 7 5 Attach 34 | . 9 . 8 5 5 1 6 Detach 3 | . . . 1 . 1 1 . Swap 22 | 2 1 4 7 4 1 2 1 Drop 73 | . 11 3 16 8 6 18 11 Fire 197 | . 45 13 38 35 10 . 56 Melee . | . . . . . . . . Ram . | . . . . . . . . Kick . | . . . . . . . . Crush . | . . . . . . . . Escape Stasis . | . . . . . . . . Rewire 2 | . . . . . . 2 . Trap . | . . . . . . . . Miscellaneous . | . . . . . . . . Route ------- -11/Scrapyard -10/Materials (discovered 3 exits: *Mat x2 / *Min) -10/Mines (discovered 2 exits: *Mat x2) -9/Materials (discovered 3 exits: *Mat x3) -8/Materials (discovered 2 exits: *Fac x2) -7/Factory -7/Waste -7/Factory History --------- Turn | Location | Event 13 | -11/Scrapyard | Discovered new exit (range 15) 67 | -11/Scrapyard | Entered Materials 206 | -10/Materials | Discovered new exit (range 8) 320 | -10/Materials | Build established: Mutant 371 | -10/Materials | Lost 3 parts (1p1u1w) 469 | -10/Materials | Discovered new exit (range 15) 694 | -10/Materials | Discovered new exit (range 11) 742 | -10/Materials | Repaired Lgt. Nuclear Core 770 | -10/Materials | Repaired Ion Engine 787 | -10/Materials | Entered Mines 846 | -10/Mines | Learned location of Storage (-7) 862 | -10/Mines | Discovered new exit (range 16) 1024 | -10/Mines | Received a Rocket Launcher from a helpful Derelict 1059 | -10/Mines | Learned Materials emergency access door positions 1303 | -10/Mines | Assisted by bots powering up and referring to "LRC-V3" 1338 | -10/Mines | Met a Derelict who couldn't figure out how to use a Trap Extractor 1364 | -10/Mines | Learned location of 1 exit from Materials 1365 | -10/Mines | Discovered new exit (range 5) 1378 | -10/Mines | Entered Materials 1378 | -9/Materials | Accompanied by 3 allies 1378 | -9/Materials | Evolved 2 slots: Utility x2 1379 | -9/Materials | Identified exit to Materials 2002 | -9/Materials | Discovered exit to Materials (range 11) 2652 | -9/Materials | Lost 4 parts (1p1n2w) 2971 | -9/Materials | Discovered exit to Materials (range 13) 2994 | -9/Materials | Entered another Materials area 2994 | -8/Materials | Evolved 2 slots: Propulsion x2 3373 | -8/Materials | Build established: Scavenger-Mutant 3499 | -8/Materials | Discovered new exit (range 6) 3537 | -8/Materials | Met 7R-MNS 3606 | -8/Materials | Discovered new exit (range 10) 3630 | -8/Materials | Entered Factory 3630 | -7/Factory | Evolved 2 slots: Utility x2 3631 | -7/Factory | Caught up to 7R-MNS 3723 | -7/Factory | Lost 3 parts (1n1u1w) 4055 | -7/Factory | Sucked down chute 4055 | -7/Factory | Entered Waste 4055 | -7/Waste | The area was eerily silent 4100 | -7/Waste | Found Damper Plating 4430 | -7/Waste | Discovered new exit (range 12) 4479 | -7/Waste | Entered Factory 4496 | -7/Factory | Build established: Mutant 5173 | -7/Factory | Repaired Broken Hvy. Treads 5200 | -7/Factory | Repaired Lrg. Storage Unit 5314 | -7/Factory | Repaired Hyb. Antimatter Reactor 5486 | -7/Factory | Repaired Adv. Concussive RPG 5523 | -7/Factory | Garrison activated, responded to threat 5550 | -7/Factory | Core integrity fell below 50% 5551 | -7/Factory | Core integrity fell below 20% 5737 | -7/Factory | Destroyed by Y-54 Guardian with Flak Gun Last Messages --------------- 05643_ Dropped Sml. Storage Unit. 05644_ Dropped Hcp. Battery. 05644_ Acquired Hvy. Armor Plating. 05645_ Extracted 8 energy. 05648_ Extracted 6 energy. 05648_ Acquired 2 matter. 05652_ Y-54 Guardian suffers critical hit (Burn). 05662_ M-28 Smith repairs Y-54 Guardian. 05664_ Damper Plating destroyed. 05666_ Y-54 Guardian suffers critical hit (Burn). 05669_ Lgt. Treads melted. 05669_ Imp. Heat Sink melted. 05669_ Gatling Laser melted. 05669_ Y-54 Guardian destroyed. 05674_ Acquired 21 matter. 05677_ Acquired Lgt. Treads. 05682_ Acquired 40 matter. 05683_ Extracted 32 energy. 05685_ Acquired Hcp. Battery. 05723_ Y-54 Guardian emerges from the garrison. Map ----- +----------------------------------------------------+ | ?????????????????????????????????????????????????? | | ?????????????????????????????????????????????????? | | ?????????????????????????????????????????????????? | | ?????????????????????????????????????????????????? | | ?????????????????????????????????????????????????? | | ?????????????????????????????????????????????????? | | ?????????????????????????????????????????????????? | | ?????????????????????????????????????????????????? | | ?????????????????????????????????????????????????? | | ?????????????????????????????????????????????????? | | ?????????????????????????????????????????????????? | | ?????????????????????????????????????????????????? | | ?????????????????????????????????????????????????? | | ?????????????????????????????????????????????????? | | ?????????????????????????????????????????????????? | | ????????????????????####?????????????????????????? | | ??????????????????? ????????????????????????? | | ????????????????? ""G"" ???????????????????????? | | ????????????????# " " #??????????????????????? | | ????????????????# #??????????????????????? | | ????????????????# """ """ #??????????????????????? | | ????????????????# """ """ #??????????????????????? | | ????????????????? """ """ ???????????????????????? | | ??????????????????? ?????????????????????????? | | ????????????????????#+################# ? ??????? | | ????????????????????# Y @ k ????? | | ????????????????????# #??? | | ????????????????????# #??? | | ????????????????????# #??? | | ????????????????????# ######## #??? | | ????????????????????# #??????? #??? | | ????????????????????# #???????? #??? | | ????????????????????# #?????????#### #??? | | ????????????????????# #????????????# #??? | | ????????????????????#+############?# #??? | | ????????????????????# # #?# #??? | | ????????????????????# """%!# ### #??? | | ????????????????????# "R *[+ #??? | | ????????????????????# """ # ### #??? | | ????????????????????#="""% # #?# #??? | | ????????????????????#=%=% !## ####+## #??? | | ????????????????????######### # #? #??? | | ???????????????????########## #! #?? #??? | | ???????????????????# # # /#??? #??? | | ???????????????????# """ =# # #???? #??? | | ???????????????????# """ # # """ #?????? #??? | | ???????????????????# """ # # """ #???????#??? | | ???????????????????# + / """ #??????????? | | ???????????????????# """ # # #??????????? | | ???????????????????# "R % # # """ #??????????? | +----------------------------------------------------+ Best States ------------- Heat Dissipation 62 Energy Generation 15 Energy Capacity 515 Matter Stores 300 Matter Capacity 300 Sight Range 16 Robot Scan Range 14 Terrain Scan Density 10 Armor Coverage 1600 Resistance: TH 10 Resistance: EM 90 Evasion (%) 55 Recoil Reduction 4 Item Schematics ----------------- None Robot Schematics ------------------ None Fabricated ------------ Nothing Alien Tech Used ----------------- None Achievements -------------- None Challenges ------------ None Game ------ Seed HelicalMinesnifferKatana Manual? 0 Play Time 00:44:26 Cumulative 26.8 hours Start 2024.09.08 @ 23:42:46 End 2024.09.09 @ 00:25:20 Sessions 1 Manual Loads 0 Difficulty Rogue Special Mode None Game No. 40 Rogue 40 Adventurer 0 Explorer 0 Win Type - Total 0 Types 0/0/0/0/0/0/0/0/0 Lore% 7 Gallery% 30 Achievement% 25 Wizard Run 0 Options --------- Layout 0 ASCII 0 Keyboard 0 Movement Mouse Keybinds 1 Fullscreen 1 Font 18/TerminusBold Map View 76x50 Zoom Use 2% Tactical HUD 1 Map Filters NONE Filters NONE Steam 1 RUN: 7b5f0e80-77bc-4cd1-bc65-59ec435097e1